fUST/lending_fUST_20250614
["ID","MTS","AMOUNT","RATE_DAILY","PERIOD"]
[365738762,1749862233389,-460.0,0.00021804,4]
[365738763,1749862233398,-460.0,0.00021804,4]
[365738764,1749862233408,-460.0,0.00021804,4]
[365738765,1749862233418,-460.0,0.00021804,4]
[365738766,1749862233427,-460.0,0.00021804,4]
[365738767,1749862233437,-679.05,0.00021804,4]
[365738768,1749862233446,-460.0,0.00021804,4]
[365738769,1749862233455,-460.0,0.00021804,4]
[365738770,1749862233465,-460.0,0.00021804,4]
[365738771,1749862233475,-460.0,0.00021804,4]
[365738772,1749862233485,-460.0,0.00021804,4]
[365738773,1749862233494,-490.58,0.00021804,4]
[365738774,1749862233503,-1057.15,0.00021804,4]
[365738775,1749862233512,-440.0,0.00021804,4]
[365738776,1749862233522,-430.0,0.00021804,4]
[365738777,1749862233531,-386.11947404,0.00021804,4]
[365738778,1749862233540,-460.0,0.00021804,4]
[365738779,1749862233549,-545.34,0.00021804,4]
[365738780,1749862233558,-430.0,0.00021804,4]
[365738781,1749862233567,-460.0,0.00021804,4]
[365738782,1749862233577,-440.0,0.00021804,4]
[365738783,1749862233591,-460.0,0.00021804,4]
[365738784,1749862233601,-430.0,0.00021804,4]
[365738785,1749862233610,-200.58955863,0.00021804,4]
[365738786,1749862233620,-460.0,0.00021804,4]
[365738787,1749862233630,-460.0,0.00021804,4]
[365738788,1749862233641,-460.0,0.00021804,4]
[365738789,1749862233650,-460.0,0.00021804,4]
[365738790,1749862233660,-420.0,0.00021804,4]
[365738791,1749862233669,-440.0,0.00021805,4]
[365738792,1749862233679,-440.0,0.00021805,4]
[365738793,1749862233688,-440.0,0.00021805,4]
[365738794,1749862233698,-360.0,0.00021805,4]
[365738795,1749862233808,-460.0,0.00021805,4]
[365738796,1749862233818,-460.0,0.00021805,4]
[365738797,1749862233828,-460.0,0.00021805,4]
[365738798,1749862233838,-460.0,0.00021805,4]
[365738799,1749862233848,-380.0,0.00021805,4]
[365738800,1749862233860,-440.0,0.00021805,4]
[365738801,1749862233871,-215.57,0.00021805,2]
[365738802,1749862233880,-460.0,0.00021805,4]
[365738803,1749862233891,-460.0,0.00021805,4]
[365738804,1749862233902,-460.0,0.00021805,4]
[365738805,1749862233912,-460.0,0.00021805,4]
[365738806,1749862233923,-439.0,0.00021805,4]
[365738807,1749862233933,-460.0,0.00021805,4]
[365738808,1749862233945,-397.93024049,0.00021805,4]
[365738809,1749862233956,-440.0,0.00021805,4]
[365738810,1749862233966,-440.0,0.00021805,4]
[365738811,1749862233976,-460.0,0.00021805,4]
[365738812,1749862233985,-440.0,0.00021805,4]
[365738813,1749862233995,-440.0,0.00021805,4]
[365738814,1749862234005,-385.6649069,0.00021805,4]
[365738815,1749862234015,-440.0,0.00021805,4]
[365738816,1749862234024,-460.0,0.00021805,4]
[365738817,1749862234035,-460.0,0.00021805,4]
[365738818,1749862234045,-430.0,0.00021805,4]
[365738819,1749862234058,-460.0,0.00021805,4]
[365738820,1749862234068,-440.0,0.00021805,4]
[365738821,1749862234078,-460.0,0.00021805,4]
[365738822,1749862234089,-580.99759417,0.00021805,4]
[365738823,1749862234102,-460.0,0.00021805,4]
[365738824,1749862234112,-312.87,0.00021805,4]
[365738825,1749862234122,-440.0,0.00021805,4]
[365738826,1749862234131,-460.0,0.00021805,4]
[365738827,1749862234141,-460.0,0.00021805,4]
[365738828,1749862234150,-460.0,0.00021805,4]
[365738829,1749862234160,-460.0,0.00021805,4]
[365738830,1749862234170,-460.0,0.00021805,4]
[365738831,1749862234179,-460.0,0.00021805,4]
[365738832,1749862234189,-460.0,0.00021805,4]
[365738833,1749862234198,-460.0,0.00021805,4]
[365738834,1749862234209,-460.0,0.00021805,4]
[365738835,1749862234219,-460.0,0.00021805,4]
[365738836,1749862234228,-460.0,0.00021805,4]
[365738837,1749862234237,-460.0,0.00021805,4]
[365738838,1749862234247,-440.0,0.00021805,4]
[365738839,1749862234256,-460.0,0.00021805,4]
[365738840,1749862234265,-479.28454572,0.00021805,4]
[365738841,1749862234274,-460.0,0.00021805,4]
[365738842,1749862234284,-460.0,0.00021805,4]
[365738843,1749862234293,-460.0,0.00021805,4]
[365738844,1749862234303,-460.0,0.00021805,4]
[365738845,1749862234313,-440.0,0.00021805,4]
[365738846,1749862234322,-442.73193462,0.00021805,4]
[365738847,1749862234332,-450.68212147,0.00021805,4]
[365738848,1749862234343,-473.54694317,0.00021805,4]
[365738849,1749862234353,-500.0,0.00021805,4]
[365738850,1749862234363,-500.0,0.00021805,4]
[365738851,1749862234373,-430.0,0.00021805,4]
[365738852,1749862234383,-440.0,0.00021805,4]
[365738853,1749862234393,-490.41197676,0.00021805,4]
[365738854,1749862234403,-440.0,0.00021805,4]
[365738855,1749862234413,-460.0,0.00021805,4]
[365738856,1749862234422,-440.0,0.00021805,4]
[365738857,1749862234432,-337.02880205,0.00021805,4]
[365738858,1749862234441,-440.0,0.00021805,4]
[365738859,1749862234450,-440.0,0.00021805,4]
[365738860,1749862234460,-410.8,0.00021805,4]
[365738861,1749862234469,-440.0,0.00021805,4]
[365738862,1749862234479,-440.0,0.00021805,4]
[365738863,1749862234490,-440.0,0.00021805,4]
[365738864,1749862234500,-440.0,0.00021805,4]
[365738865,1749862234510,-440.0,0.00021805,4]
[365738866,1749862234520,-460.0,0.00021805,4]
[365738867,1749862234530,-440.0,0.00021805,4]
[365738868,1749862234540,-460.0,0.00021805,4]
[365738869,1749862234550,-460.0,0.00021805,4]
[365738870,1749862234559,-460.0,0.00021805,4]
[365738871,1749862234569,-430.0,0.00021805,4]
[365738872,1749862234579,-460.0,0.00021805,4]
[365738873,1749862234588,-204.04723304,0.00021805,4]
[365738874,1749862234600,-460.0,0.00021805,4]
[365738875,1749862234610,-424.91056021,0.00021805,4]
[365738876,1749862234619,-460.0,0.00021805,4]
[365738877,1749862234629,-460.0,0.00021806,4]
[365738878,1749862234638,-570.82162872,0.00021806,4]
[365738879,1749862234648,-460.0,0.00021806,4]
[365738880,1749862234658,-460.0,0.00021806,4]
[365738881,1749862234667,-440.0,0.00021806,4]
[365738882,1749862234676,-372.48625507,0.00021806,4]
[365738883,1749862234686,-460.0,0.00021806,4]
[365738884,1749862234695,-460.0,0.00021806,4]
[365738885,1749862234705,-460.0,0.00021806,4]
[365738886,1749862234715,-460.0,0.00021806,4]
[365738887,1749862234726,-420.0,0.00021806,4]
[365738888,1749862234735,-394.92506051,0.00021806,4]
[365738889,1749862234745,-460.0,0.00021806,4]
[365738890,1749862234754,-428.02812103,0.00021806,4]
[365738891,1749862234763,-460.0,0.00021806,4]
[365738892,1749862234773,-410.0,0.00021806,4]
[365738893,1749862234782,-460.0,0.00021806,4]
[365738894,1749862234791,-460.0,0.00021806,4]
[365738895,1749862234801,-460.0,0.00021806,4]
[365738896,1749862234810,-440.0,0.00021806,4]
[365738897,1749862234820,-507.5096245,0.00021806,4]
[365738898,1749862234829,-460.0,0.00021806,4]
[365738899,1749862234839,-460.0,0.00021806,4]
[365738900,1749862234850,-420.0,0.00021806,4]
[365738901,1749862234862,-440.0,0.00021806,4]
[365738902,1749862234871,-460.0,0.00021806,4]
[365738903,1749862234881,-291.15789632,0.00021806,4]
[365738904,1749862234890,-460.0,0.00021806,4]
[365738905,1749862234900,-460.0,0.00021806,4]
[365738906,1749862234910,-460.0,0.00021806,4]
[365738907,1749862234919,-460.0,0.00021806,4]
[365738908,1749862234928,-440.0,0.00021806,4]
[365738909,1749862234937,-460.0,0.00021806,4]
[365738910,1749862234946,-460.0,0.00021806,4]
[365738911,1749862234955,-253.12376904,0.00021806,4]
[365738912,1749862234964,-460.0,0.00021806,4]
[365738913,1749862234974,-173.16803214,0.00021806,4]
[365738914,1749862234983,-430.0,0.00021806,4]
[365738915,1749862234993,-430.0,0.00021806,4]
[365738916,1749862235002,-420.0,0.00021806,4]
[365738917,1749862235012,-430.0,0.00021806,4]
[365738918,1749862235021,-460.0,0.00021806,4]
[365738919,1749862235030,-460.0,0.00021806,4]
[365738920,1749862235039,-430.0,0.00021806,4]
[365738921,1749862235048,-370.0,0.00021806,4]
[365738922,1749862235057,-430.0,0.00021806,4]
[365738923,1749862235067,-460.0,0.00021806,4]
[365738924,1749862235076,-305.23334353,0.00021806,4]
[365738925,1749862235086,-420.0,0.00021806,4]
[365738926,1749862235096,-460.0,0.00021806,4]
[365738927,1749862235104,-460.0,0.00021806,4]
[365738928,1749862235114,-371.65732547,0.00021806,4]
[365738929,1749862235123,-460.0,0.00021806,4]
[365738930,1749862235132,-440.0,0.00021806,4]
[365738931,1749862235142,-460.0,0.00021806,4]
[365738932,1749862235151,-460.0,0.00021806,4]
[365738933,1749862235161,-440.0,0.00021806,4]
[365738934,1749862235170,-460.0,0.00021806,4]
[365738935,1749862235179,-440.0,0.00021806,4]
[365738936,1749862235191,-460.0,0.00021806,4]
[365738937,1749862235207,-361.88937681,0.00021806,4]
[365738938,1749862235217,-460.0,0.00021806,4]
[365738939,1749862235226,-440.0,0.00021806,4]
[365738940,1749862235235,-460.0,0.00021806,4]
[365738941,1749862235244,-460.0,0.00021806,4]
[365738942,1749862235256,-511.92273979,0.00021806,4]
[365738943,1749862235266,-420.0,0.00021806,4]
[365738944,1749862235275,-460.0,0.00021806,4]
[365738945,1749862235284,-440.0,0.00021806,4]
[365738946,1749862235296,-440.0,0.00021806,4]
[365738947,1749862235306,-219.44302782,0.00021806,4]
[365738948,1749862235316,-460.0,0.00021806,4]
[365738949,1749862235326,-460.0,0.00021806,4]
[365738950,1749862235336,-460.0,0.00021806,4]
[365738951,1749862235348,-460.0,0.00021806,4]
[365738952,1749862235358,-460.0,0.00021806,4]
[365738953,1749862235368,-460.0,0.00021806,4]
[365738954,1749862235379,-152.52403429,0.00021806,4]
[365738955,1749862235389,-381.76793635,0.00021806,4]
[365738956,1749862235398,-460.0,0.00021806,4]
[365738957,1749862235408,-380.0,0.00021806,4]
[365738958,1749862235417,-430.0,0.00021806,4]
[365738959,1749862235427,-460.0,0.00021806,4]
[365738960,1749862235436,-440.0,0.00021806,4]
[365738961,1749862235445,-518.1523973,0.00021806,4]
[365738962,1749862235454,-460.0,0.00021806,4]
[365738963,1749862235463,-460.0,0.00021806,4]
[365738964,1749862235473,-440.0,0.00021806,4]
[365738965,1749862235482,-460.0,0.00021806,4]
[365738966,1749862235491,-460.0,0.00021806,4]
[365738967,1749862235501,-420.0,0.00021806,4]
[365738968,1749862235510,-460.0,0.00021806,4]
[365738969,1749862235519,-410.0,0.00021806,4]
[365738970,1749862235528,-460.0,0.00021806,4]
[365738971,1749862235538,-460.0,0.00021806,4]
[365738972,1749862235547,-460.0,0.00021806,4]
[365738973,1749862235557,-460.0,0.00021806,4]
[365738974,1749862235566,-440.0,0.00021806,4]
[365738975,1749862235575,-430.0,0.00021806,4]
[365738976,1749862235585,-430.0,0.00021806,4]
[365738977,1749862235594,-460.0,0.00021806,4]
[365738978,1749862235603,-460.0,0.00021806,4]
[365738979,1749862235612,-460.0,0.00021806,4]
[365738980,1749862235621,-440.0,0.00021806,4]
[365738981,1749862235630,-440.0,0.00021806,4]
[365738982,1749862235639,-440.0,0.00021806,4]
[365738983,1749862235648,-460.0,0.00021806,4]
[365738984,1749862235657,-440.0,0.00021806,4]
[365738985,1749862235666,-420.0,0.00021806,4]
[365738986,1749862235675,-460.0,0.00021806,4]
[365738987,1749862235685,-420.0,0.00021806,4]
[365738988,1749862235694,-460.0,0.00021806,4]
[365738989,1749862235703,-460.0,0.00021806,4]
[365738990,1749862235712,-440.0,0.00021806,4]
[365738991,1749862235721,-440.0,0.00021806,4]
[365738992,1749862235730,-460.0,0.00021806,4]
[365738993,1749862235739,-460.0,0.00021806,4]
[365738994,1749862235748,-440.0,0.00021806,4]
[365738995,1749862235758,-460.0,0.00021806,4]
[365738996,1749862235767,-460.0,0.00021806,4]
[365738997,1749862235776,-460.0,0.00021806,4]
[365738998,1749862235785,-440.0,0.00021806,4]
[365738999,1749862235794,-439.92096667,0.00021806,4]
[365739000,1749862235803,-360.11491692,0.00021806,4]
[365739001,1749862235813,-460.0,0.00021806,4]
[365739002,1749862235822,-460.0,0.00021806,4]
[365739003,1749862235831,-460.0,0.00021806,4]
[365739004,1749862235840,-440.0,0.00021806,4]
[365739005,1749862235851,-460.0,0.00021806,4]
[365739006,1749862235867,-440.0,0.00021806,4]
[365739007,1749862235876,-460.0,0.00021806,4]
[365739008,1749862235886,-411.21789978,0.00021806,4]
[365739009,1749862235895,-281.0,0.00021858,2]
[365739010,1749862235906,-500.0,0.00021873,2]
[365739011,1749862235915,-500.0,0.00021873,2]
[365739012,1749862235924,-1569.97,0.0002189,2]
[365739013,1749862236021,-1414.26,0.000219,2]
[365739014,1749862236032,-2218.75059557,0.000219,6]
[365739015,1749862236042,-180.05716683,0.00021979,2]
[365739016,1749862236051,-164.0,0.00022,2]
[365739017,1749862236061,-2218.7505955,0.00022003,6]
[365739018,1749862236070,-500.0,0.00022006,2]
[365739019,1749862236078,-500.0,0.00022006,2]
[365739020,1749862236088,-500.0,0.00022006,2]
[365739021,1749862236098,-500.0,0.00022006,2]
[365739022,1749862236108,-607.67265013,0.00022006,2]
[365739023,1749862236117,-500.0,0.00022006,2]
[365739024,1749862236127,-347.52067203,0.00022006,2]
[365739025,1749862236137,-500.0,0.00022006,2]
[365739026,1749862236148,-500.0,0.00022006,2]
[365739027,1749862236159,-500.0,0.00022006,2]
[365739028,1749862236170,-500.0,0.00022006,2]
[365739029,1749862236179,-5201.45450174,0.00022007,2]
[365739030,1749862236189,-1688.0,0.00022052,2]
[365739031,1749862236200,-207.4,0.00022052,2]
[365739032,1749862236209,-209.0,0.00022054,2]
[365739033,1749862236219,-281.0,0.00022056,2]
[365739034,1749862236228,-209.0,0.00022059,2]
[365739035,1749862236238,-460.0,0.00022078,4]
[365739036,1749862236247,-410.0,0.00022078,4]
[365739037,1749862236256,-460.0,0.00022078,4]
[365739038,1749862236266,-460.0,0.00022078,4]
[365739039,1749862236275,-460.0,0.00022078,4]
[365739040,1749862236284,-460.0,0.00022078,4]
[365739041,1749862236294,-410.0,0.00022078,4]
[365739042,1749862236303,-410.0,0.00022078,4]
[365739043,1749862236312,-410.0,0.00022078,4]
[365739044,1749862236321,-410.0,0.00022078,4]
[365739045,1749862236330,-330.0,0.00022078,4]
[365739046,1749862236339,-460.0,0.00022078,4]
[365739047,1749862236349,-460.0,0.00022078,4]
[365739048,1749862236358,-460.0,0.00022078,4]
[365739049,1749862236367,-460.0,0.00022078,4]
[365739050,1749862236377,-900.75,0.00022078,4]
[365739051,1749862236386,-460.0,0.00022078,4]
[365739052,1749862236397,-460.0,0.00022078,4]
[365739053,1749862236407,-410.0,0.00022078,4]
[365739054,1749862236418,-527.63,0.00022078,4]
[365739055,1749862236428,-460.0,0.00022078,4]
[365739056,1749862236439,-460.0,0.00022078,4]
[365739057,1749862236448,-354.63364122,0.00022078,4]
[365739058,1749862236457,-460.0,0.00022078,4]
[365739059,1749862236468,-176.42216501,0.00022078,4]
[365739060,1749862236477,-460.0,0.00022078,4]
[365739061,1749862236486,-420.0,0.00022078,4]
[365739062,1749862236495,-460.0,0.00022078,4]
[365739063,1749862236505,-460.0,0.00022078,4]
[365739064,1749862236515,-460.0,0.00022078,4]
[365739065,1749862236525,-725.53,0.00022078,4]
[365739066,1749862236535,-420.0,0.00022078,4]
[365739067,1749862236545,-460.0,0.00022078,4]
[365739068,1749862236555,-460.0,0.00022078,4]
[365739069,1749862236564,-460.0,0.00022078,4]
[365739070,1749862236573,-460.0,0.00022078,4]
[365739071,1749862236582,-484.27,0.00022078,4]
[365739072,1749862236591,-460.0,0.00022078,4]
[365739073,1749862236602,-460.0,0.00022078,4]
[365739074,1749862236612,-4052.33,0.00022078,4]
[365739075,1749862236622,-460.0,0.00022078,4]
[365739076,1749862236632,-1181.2,0.00022078,4]
[365739077,1749862236642,-460.0,0.00022078,4]
[365739078,1749862236651,-460.0,0.00022078,4]
[365739079,1749862236661,-460.0,0.00022078,4]
[365739080,1749862236671,-659.53,0.00022078,4]
[365739081,1749862236680,-460.0,0.00022078,4]
[365739082,1749862236695,-460.0,0.00022078,4]
[365739083,1749862236705,-603.53,0.00022078,4]
[365739084,1749862236716,-460.0,0.00022078,4]
[365739085,1749862236726,-460.0,0.00022078,4]
[365739086,1749862236735,-410.0,0.00022078,4]
[365739087,1749862236744,-460.0,0.00022078,4]
[365739088,1749862236754,-410.0,0.00022078,4]
[365739089,1749862236763,-460.0,0.00022078,4]
[365739090,1749862236773,-460.0,0.00022078,4]
[365739091,1749862236783,-467.97156675,0.00022078,4]
[365739092,1749862236792,-460.0,0.00022078,4]
[365739093,1749862236802,-1517.7,0.00022078,4]
[365739094,1749862236812,-390.0,0.00022078,4]
[365739095,1749862236822,-420.7337434,0.00022078,4]
[365739096,1749862236831,-460.0,0.00022078,4]
[365739097,1749862236841,-460.0,0.00022078,4]
[365739098,1749862236851,-410.0,0.00022078,4]
[365739099,1749862236863,-679.05,0.00022078,4]
[365739100,1749862236873,-306.123583,0.00022078,4]
[365739101,1749862236882,-420.0,0.00022078,4]
[365739102,1749862236892,-430.0,0.00022078,4]
[365739103,1749862236902,-460.0,0.00022078,4]
[365739104,1749862236913,-460.0,0.00022078,4]
[365739105,1749862236922,-490.58,0.00022078,4]
[365739106,1749862236935,-1057.15,0.00022078,4]
[365739107,1749862236948,-460.0,0.00022078,4]
[365739108,1749862236959,-460.0,0.00022078,4]
[365739109,1749862236969,-460.0,0.00022078,4]
[365739110,1749862236979,-460.0,0.00022078,4]
[365739111,1749862236989,-460.0,0.00022078,4]
[365739112,1749862236999,-460.0,0.00022078,4]
[365739113,1749862237009,-460.0,0.00022078,4]
[365739114,1749862237020,-460.0,0.00022079,4]
[365739115,1749862237030,-572.38974434,0.00022079,4]
[365739116,1749862237040,-460.0,0.00022079,4]
[365739117,1749862237050,-460.0,0.00022079,4]
[365739118,1749862237060,-460.0,0.00022079,4]
[365739119,1749862237071,-423.54,0.00022079,4]
[365739120,1749862237081,-184.94,0.00022079,4]
[365739121,1749862237091,-410.0,0.00022079,4]
[365739122,1749862237102,-460.0,0.00022079,4]
[365739123,1749862237113,-460.0,0.00022079,4]
[365739124,1749862237123,-460.0,0.00022079,4]
[365739125,1749862237133,-578.64,0.00022079,4]
[365739126,1749862237142,-390.0,0.00022079,4]
[365739127,1749862237152,-320.0,0.00022079,4]
[365739128,1749862237161,-420.0,0.00022079,4]
[365739129,1749862237171,-420.0,0.00022079,4]
[365739130,1749862237181,-420.0,0.00022079,4]
[365739131,1749862237190,-420.0,0.00022079,4]
[365739132,1749862237199,-460.0,0.00022079,4]
[365739133,1749862237209,-460.0,0.00022079,4]
[365739134,1749862237219,-460.0,0.00022079,4]
[365739135,1749862237229,-460.0,0.00022079,4]
[365739136,1749862237239,-433.19800564,0.00022079,4]
[365739137,1749862237249,-460.0,0.00022079,4]
[365739138,1749862237259,-460.0,0.00022079,4]
[365739139,1749862237268,-358.92054944,0.00022079,4]
[365739140,1749862237278,-460.0,0.00022079,4]
[365739141,1749862237288,-420.0,0.00022079,4]
[365739142,1749862237298,-250.24167405,0.00022079,4]
[365739143,1749862237308,-369.68542956,0.00022079,4]
[365739144,1749862237318,-500.0,0.00022079,4]
[365739145,1749862237327,-460.0,0.00022079,4]
[365739146,1749862237337,-420.0,0.00022079,4]
[365739147,1749862237347,-420.0,0.00022079,4]
[365739148,1749862237357,-420.0,0.00022079,4]
[365739149,1749862237367,-420.0,0.00022079,4]
[365739150,1749862237377,-420.0,0.00022079,4]
[365739151,1749862237387,-420.0,0.00022079,4]
[365739152,1749862237396,-420.0,0.00022079,4]
[365739153,1749862237406,-370.0,0.0002208,4]
[365739154,1749862237416,-474.85156143,0.0002208,4]
[365739155,1749862237425,-390.0,0.0002208,4]
[365739156,1749862237435,-370.0,0.0002208,4]
[365739157,1749862237444,-390.0,0.0002208,4]
[365739158,1749862237453,-400.0,0.0002208,4]
[365739159,1749862237463,-460.0,0.0002208,4]
[365739160,1749862237472,-460.0,0.0002208,4]
[365739161,1749862237481,-479.0956858,0.0002208,4]
[365739162,1749862237491,-410.0,0.0002208,4]
[365739163,1749862237501,-215.33832303,0.0002208,4]
[365739164,1749862237510,-285.82201057,0.0002208,4]
[365739165,1749862237520,-189.63842136,0.0002208,4]
[365739166,1749862237529,-460.0,0.0002208,4]
[365739167,1749862237538,-383.29933048,0.0002208,4]
[365739168,1749862237549,-410.0,0.0002208,4]
[365739170,1749862237558,-410.0,0.0002208,4]
[365739171,1749862237567,-216.34897861,0.0002208,4]
[365739173,1749862237577,-420.0,0.0002208,4]
[365739175,1749862237588,-400.0,0.0002208,4]
[365739176,1749862237598,-420.0,0.0002208,4]
[365739177,1749862237607,-440.0,0.0002208,4]
[365739178,1749862237617,-307.9476566,0.0002208,4]
[365739179,1749862237627,-420.0,0.0002208,4]
[365739180,1749862237637,-460.0,0.0002208,4]
[365739181,1749862237646,-420.0,0.0002208,4]
[365739182,1749862237656,-380.0,0.0002208,4]
[365739183,1749862237665,-420.0,0.0002208,4]
[365739184,1749862237674,-460.0,0.0002208,4]
[365739185,1749862237684,-460.0,0.0002208,4]
[365739186,1749862237693,-30742.89568451,0.000221,2]
[365739187,1749862237703,-27802.13989824,0.000221,2]
[365739188,1749862237712,-82992.196861,0.000221,7]
[365739189,1749862238409,-500.0,0.00021804,2]
[365739190,1749862238420,-500.0,0.00021804,2]
[365739191,1749862238432,-500.0,0.00021804,2]
[365739192,1749862238441,-500.0,0.00021804,2]
[365739193,1749862238451,-500.0,0.00021804,2]
[365739194,1749862238461,-198.84436832,0.00021804,2]
[365739195,1749862238471,-253.8816626,0.00021804,2]
[365739196,1749862238481,-385.66906334,0.00021804,2]
[365739197,1749862238490,-500.0,0.00021804,2]
[365739198,1749862238499,-500.0,0.00021804,2]
[365739199,1749862238508,-500.0,0.00021804,2]
[365739200,1749862238517,-406.15203934,0.00021804,2]
[365739201,1749862238527,-500.0,0.00021804,2]
[365739202,1749862238536,-500.0,0.00021804,2]
[365739203,1749862238545,-500.0,0.00021804,2]
[365739204,1749862238554,-500.0,0.00021804,2]
[365739205,1749862238563,-500.0,0.00021804,2]
[365739206,1749862238572,-460.0,0.00021804,4]
[365739207,1749862238582,-500.0,0.00022006,2]
[365739208,1749862238595,-500.0,0.00022006,2]
[365739209,1749862238605,-500.0,0.00022006,2]
[365739210,1749862238613,-500.0,0.00022006,2]
[365739211,1749862238622,-500.0,0.00022006,2]
[365739212,1749862238631,-500.0,0.00022006,2]
[365739213,1749862238640,-500.0,0.00022006,2]
[365739214,1749862238649,-362.04708411,0.000221,7]
[365739215,1749862238669,-500.0,0.00021805,2]
[365739216,1749862238678,-22069.03605489,0.000221,7]
[365739217,1749862238687,-1750.456,0.00022107,2]
[365739218,1749862238696,-2218.7505955,0.00022107,6]
[365739219,1749862238705,-1721.0,0.00022191,2]
[365739220,1749862238714,-153.0,0.00022192,2]
[365739221,1749862238723,-2218.7505955,0.0002221,6]
[365739222,1749862238732,-2218.7505955,0.00022314,7]
[365739223,1749862238741,-460.0,0.00022352,4]
[365739224,1749862238751,-460.0,0.00022352,4]
[365739225,1749862238759,-460.0,0.00022352,4]
[365739226,1749862238768,-460.0,0.00022352,4]
[365739227,1749862238778,-460.0,0.00022352,4]
[365739228,1749862238787,-460.0,0.00022352,4]
[365739229,1749862238796,-460.0,0.00022352,4]
[365739230,1749862238805,-460.0,0.00022352,4]
[365739231,1749862238814,-460.0,0.00022352,4]
[365739232,1749862238823,-900.75,0.00022352,4]
[365739233,1749862238832,-460.0,0.00022352,4]
[365739234,1749862238841,-390.0,0.00022352,4]
[365739235,1749862238851,-500.0,0.00022352,4]
[365739236,1749862238863,-527.63,0.00022352,4]
[365739237,1749862238873,-460.0,0.00022352,4]
[365739238,1749862238882,-460.0,0.00022352,4]
[365739239,1749862238892,-360.0,0.00022352,4]
[365739240,1749862238901,-390.0,0.00022352,4]
[365739241,1749862238910,-338.51963624,0.00022352,4]
[365739242,1749862238919,-460.0,0.00022352,4]
[365739243,1749862238929,-460.0,0.00022352,4]
[365739244,1749862238938,-725.53,0.00022352,4]
[365739245,1749862238947,-390.0,0.00022352,4]
[365739246,1749862238957,-460.0,0.00022352,4]
[365739247,1749862238966,-460.0,0.00022352,4]
[365739248,1749862238975,-390.0,0.00022352,4]
[365739249,1749862238984,-484.27,0.00022352,4]
[365739250,1749862238994,-350.0,0.00022352,4]
[365739251,1749862239003,-460.0,0.00022352,4]
[365739252,1749862239013,-4052.33,0.00022352,4]
[365739253,1749862239022,-460.0,0.00022352,4]
[365739254,1749862239032,-1181.2,0.00022352,4]
[365739255,1749862239041,-460.0,0.00022352,4]
[365739256,1749862239051,-460.0,0.00022352,4]
[365739257,1749862239060,-390.0,0.00022352,4]
[365739258,1749862239070,-659.53,0.00022352,4]
[365739259,1749862239079,-460.0,0.00022352,4]
[365739260,1749862239089,-420.40131777,0.00022352,4]
[365739261,1749862239098,-603.53,0.00022352,4]
[365739262,1749862239108,-390.0,0.00022352,4]
[365739263,1749862239117,-460.0,0.00022352,4]
[365739264,1749862239126,-460.0,0.00022352,4]